bitfinex/quotes_ETHUSD_20250222
["timestamp","ask_amount","ask_price","bid_price","bid_amount"]
[1740249741054,4.38803,2779.6,2779.5,7.349]
[1740249742177,0.7904,2779.6,2779.5,7.349]
[1740249742385,4.38803,2779.6,2779.5,7.349]
[1740249743080,3.59778,2779.5,2779.1,3.6032]
[1740249743283,3.59778,2779.5,2779.1,4.43925081]
[1740249743889,0.7904,2779.6,2779.2,3.59815]
[1740249744078,0.7904,2779.6,2779.1,0.84105081]
[1740249744283,4.38812,2779.6,2779.1,0.84105081]
[1740249744585,3.5981,2779.3,2779.1,0.005]
[1740249745394,3.59797,2779.4,2779.1,0.005]
[1740249747071,3.59812,2779.3,2779.1,0.005]
[1740249747270,3.59797,2779.4,2779.1,0.005]
[1740249748789,3.59813,2779.3,2779.1,0.005]
[1740249750198,3.59797,2779.4,2779.1,0.005]
[1740249750363,3.59804,2779.3,2779.1,0.005]
[1740249750696,4.37085,2779.2,2779.1,0.005]
[1740249755412,4.37085,2779.2,2779.1,0.16758137]
[1740249758986,13.186,2779.5,2779.1,0.16758137]
[1740249759398,9.58815,2779.5,2779.1,0.16758137]
[1740249760015,13.18601,2779.5,2779.1,0.16758137]
[1740249760217,9.58815,2779.5,2779.1,0.16758137]
[1740249761100,4.34815,2779.5,2779.1,0.16758137]
[1740249761613,4.34815,2779.5,2779.1,0.56314351]
[1740249761816,0.7503,2779.5,2779.1,0.56314351]
[1740249762008,3.59815,2779.3,2779.1,0.16758137]
[1740249762210,3.59815,2779.2,2779.1,0.16758137]
[1740249762394,4.34845,2779.2,2779.1,0.005]
[1740249763119,7.34845,2779.2,2779.1,0.005]
[1740249765188,7.34845,2779.2,2779.1,0.16808226]
[1740249765394,0.7503,2779.2,2779.1,0.16808226]
[1740249765739,3.59771,2779.6,2779.1,0.35778226]
[1740249765903,4.34782,2779.7,2779.1,0.35778226]
[1740249766109,7.94544,2779.7,2779.1,0.35778226]
[1740249766423,3.59763,2779.6,2779.1,1.11324549]
[1740249767323,3.59777,2779.5,2779.1,1.11324549]
[1740249768196,3.59777,2779.5,2779.1,0.35778226]
[1740249772511,7.19563,2779.5,2779.1,0.35778226]
[1740249772724,3.59777,2779.5,2779.1,0.35778226]
[1740249773234,3.59763,2779.6,2779.1,0.35778226]
[1740249773736,3.59786,2779.5,2779.1,0.35778226]
[1740249774434,3.59763,2779.6,2779.1,0.35778226]
[1740249774640,3.5979,2779.4,2779.1,0.35778226]
[1740249774935,3.5981,2779.3,2779.1,0.35778226]
[1740249775311,3.5979,2779.4,2779.1,0.35778226]
[1740249775697,3.59809,2779.3,2779.1,0.35778226]
[1740249776836,3.59815,2779.2,2779.1,0.16808226]
[1740249778654,4.42809,2779.3,2779.1,0.16808226]
[1740249778811,8.02621,2779.3,2779.1,0.16808226]
[1740249779017,4.42809,2779.3,2779.1,0.16808226]
[1740249779223,3.59815,2779.2,2779.1,0.16808226]
[1740249779404,9.66815,2779.2,2779.1,0.16808226]
[1740249779734,12.66815,2779.2,2779.1,0.16808226]
[1740249781716,12.66815,2779.2,2779.1,0.005]
[1740249783235,12.66815,2779.2,2779.1,0.16813659]
[1740249783439,13.89597424,2779.2,2779.1,0.005]
[1740249786045,17.23402461,2779.2,2779.1,1e-05]
[1740249786340,4.3673,2778.1,2777.1,0.1897]
[1740249786719,3.6004,2777.5,2777.2,0.15986146]
[1740249787309,3.60061,2777.3,2777.2,0.15986146]
[1740249787543,3.60061,2777.3,2776.8,0.1897]
[1740249787840,7.20107,2777.4,2776.8,3.79093]
[1740249788042,3.60049,2777.4,2776.9,0.16019815]
[1740249788243,3.60094,2777.1,2776.9,0.16019815]
[1740249788543,5.24,2777.4,2777.0,3.60088]
[1740249788730,5.24,2777.4,2777.1,0.1897]
[1740249788938,5.24,2777.4,2777.0,0.16008591]
[1740249789142,3.60087,2777.1,2776.8,0.1897]
[1740249790852,3.60062,2777.3,2776.8,0.1897]
[1740249791053,5.24,2777.4,2776.8,0.1897]
[1740249791235,5.24,2777.4,2776.9,3.60107]
[1740249791421,5.24,2777.4,2776.9,3.60105]
[1740249791628,5.24,2777.4,2776.8,0.568805]
[1740249791629,5.24,2777.4,2776.8,0.418805]
[1740249791839,5.24,2777.4,2776.9,3.60112]
[1740249792758,5.24,2777.4,2776.9,3.60106]
[1740249793457,5.24,2777.4,2776.9,7.20212]
[1740249793658,5.24,2777.4,2776.9,3.60106]
[1740249793857,3.60025,2777.6,2776.9,3.60106]
[1740249794259,3.33805037,2777.7,2776.9,3.60106]
[1740249794422,3.60024,2777.6,2776.9,7.20212]
[1740249794624,3.60024,2777.6,2776.9,3.60106]
[1740249794950,7.20057,2777.6,2776.9,3.60111]
[1740249795451,3.60024,2777.6,2776.8,4.020025]
[1740249795623,3.60069,2777.3,2776.8,0.0397]
[1740249796631,3.60092,2777.1,2776.5,3.6686]
[1740249796854,3.60109,2777.0,2776.5,0.0397]
[1740249797557,7.20191,2777.1,2776.5,0.0397]
[1740249797763,3.60092,2777.1,2776.5,0.0397]
[1740249797921,3.60092,2777.1,2776.5,3.64133]
[1740249798127,5.24,2777.5,2776.5,3.64133]
[1740249798128,9.63363,2777.5,2776.5,0.68765178]
[1740249798327,9.63363,2777.5,2776.7,3.60135]
[1740249798555,3.6005,2777.4,2776.7,3.60135]
[1740249798953,6.0332,2777.5,2776.5,0.68765178]
[1740249799159,3.33805037,2777.4,2776.5,0.0397]
[1740249799337,3.601,2777.1,2776.5,0.0397]
[1740249799959,9.63364,2777.5,2776.8,3.6012]
[1740249800550,9.63364,2777.5,2776.9,3.76278436]
[1740249800747,9.63364,2777.5,2776.9,0.16165436]
[1740249800953,3.60049,2777.4,2776.9,0.16165436]
[1740249801153,3.60049,2777.4,2776.7,3.60132]
[1740249801550,3.60049,2777.4,2776.8,0.16302386]
[1740249801742,10.600449,2777.5,2776.8,3.76428386]
[1740249802059,14.200889,2777.5,2776.8,3.76428386]
[1740249802265,10.600449,2777.5,2776.8,3.76428386]
[1740249802464,3.60068,2777.3,2776.8,0.16302386]
[1740249802672,3.60068,2777.3,2776.7,3.60138]
[1740249802869,3.60068,2777.3,2776.9,0.16291161]
[1740249803068,3.60068,2777.3,2776.7,3.60132]
[1740249803246,3.60068,2777.3,2777.0,0.16279937]
[1740249803446,5.14357532,2777.3,2776.7,3.60132]
[1740249803645,3.60068,2777.3,2776.8,0.16302386]
[1740249803846,3.60054,2777.4,2776.7,3.60132]
[1740249804043,10.600449,2777.5,2776.8,0.16302386]
[1740249804247,3.60064,2777.3,2776.8,0.16302386]
[1740249804458,3.60064,2777.3,2776.7,3.60132]
[1740249804654,3.60064,2777.3,2776.8,0.16302386]
[1740249804848,3.60064,2777.3,2776.7,3.60132]
[1740249805046,3.60064,2777.3,2776.8,0.16302386]
[1740249805255,3.60064,2777.3,2776.7,3.60132]
[1740249805454,3.60064,2777.3,2776.8,0.16302386]
[1740249805638,3.60064,2777.3,2776.7,3.60132]
[1740249805838,3.60064,2777.3,2776.8,0.16302386]
[1740249806070,3.60064,2777.3,2776.7,3.60132]
[1740249806262,3.59350174,2777.3,2776.9,0.16291161]
[1740249806468,3.59350174,2777.3,2776.7,3.60132]
[1740249806733,3.60056,2777.4,2776.7,3.60131]
[1740249806934,3.60062,2777.3,2776.8,0.16302386]
[1740249807159,3.60062,2777.3,2776.7,3.60131]
[1740249807370,3.60062,2777.3,2776.9,0.16291161]
[1740249807537,3.60062,2777.3,2776.8,0.16302386]
[1740249807741,3.60049,2777.4,2776.8,3.60124]
[1740249807952,3.60049,2777.4,2776.9,0.16291161]
[1740249808237,3.60049,2777.4,2776.9,0.20261161]
[1740249809170,7.000009,2777.5,2776.9,0.20261161]
[1740249809347,4.4284,2777.0,2776.9,0.16291161]
[1740249809539,3.60129,2776.8,2776.5,0.0397]
[1740249809941,3.60129,2776.8,2776.6,0.15795336]
[1740249810142,0.8274,2777.0,2776.6,0.15795336]
[1740249810345,3.60132,2776.8,2776.3,0.0397]
[1740249810556,3.60132,2776.8,2776.7,0.15784109]
[1740249810873,4.404305,2776.8,2776.7,0.15784109]
[1740249811055,4.404305,2776.8,2776.3,0.0397]
[1740249811256,4.404305,2776.8,2776.4,0.15817791]
[1740249811660,3.6015,2776.7,2776.4,0.15817791]
[1740249812184,6.93970037,2776.5,2776.4,0.15817791]
[1740249812478,6.93970037,2776.5,2775.7,0.1545]
[1740249812479,7.59602304,2776.5,2775.7,0.1545]
[1740249812648,3.60198,2776.3,2775.8,0.0397]
[1740249812850,8.84169,2776.5,2775.9,3.60235]
[1740249813078,3.0,2776.6,2776.0,3.60223]
[1740249813769,0.7779,2777.2,2776.3,0.0397]
[1740249813968,3.60157,2776.6,2776.3,0.0397]
[1740249814168,3.60186,2776.4,2775.9,0.0397]
[1740249815385,7.20326,2776.6,2775.9,3.64205]
[1740249815586,6.60139,2776.7,2776.1,3.60205]
[1740249815751,9.61904,2776.9,2776.1,0.0397]
[1740249815953,8.84114,2776.9,2776.4,3.60177]
[1740249816275,8.84114,2776.9,2776.5,0.19776563]
[1740249816883,5.24,2776.9,2776.5,0.19776563]
[1740249817250,3.60133,2776.8,2776.5,0.19776563]
[1740249817787,6.93915037,2777.0,2776.5,0.19776563]
[1740249818687,3.0,2777.1,2776.5,3.79938563]
[1740249818985,8.13654504,2777.1,2776.5,3.79938563]
[1740249819186,3.60115,2776.9,2776.5,0.19776563]
[1740249819575,3.60115,2776.9,2776.5,0.93197673]
[1740249819888,3.60134,2776.8,2776.5,0.93197673]
[1740249820459,8.13655504,2777.1,2776.5,4.53351673]
[1740249821068,8.13655504,2777.1,2776.5,8.13510673]
[1740249821352,8.13655504,2777.1,2776.5,8.13508673]
[1740249821590,3.60101,2777.0,2776.5,4.53351673]
[1740249821761,4.53559504,2777.1,2776.6,3.60143]
[1740249821762,3.60088,2777.1,2776.6,3.60143]
[1740249821965,3.60088,2777.1,2776.6,3.75967881]
[1740249823390,7.20186,2777.1,2776.6,3.75967881]
[1740249823581,3.60088,2777.1,2776.6,3.75967881]
[1740249825092,7.71661037,2777.3,2776.6,3.75967881]
[1740249825264,3.60066,2777.3,2776.9,0.0397]
[1740249825463,3.60066,2777.3,2777.0,0.15801687]
[1740249825996,3.60075,2777.2,2777.0,0.15801687]
[1740249826193,3.60087,2777.1,2777.0,0.15801687]
[1740249826495,3.60126,2776.9,2776.3,3.6019]
[1740249826700,3.60132,2776.8,2776.3,3.6019]
[1740249826859,3.60126,2776.8,2776.3,3.6019]
[1740249827261,0.8129,2777.2,2776.4,0.0397]
[1740249827462,6.93870037,2777.3,2776.6,3.60146]
[1740249827662,6.93873037,2777.3,2776.7,0.0397]
[1740249827858,0.84516313,2777.2,2776.7,0.0397]
[1740249828464,3.60108,2777.0,2776.7,0.0397]
[1740249828662,3.60094,2777.1,2776.7,0.0397]
[1740249830375,4.44601313,2777.2,2776.7,0.0397]
[1740249830583,3.60094,2777.1,2776.5,3.60159]
[1740249830783,4.44601313,2777.2,2776.6,3.60145]
[1740249831104,4.44599313,2777.2,2776.7,0.0397]
[1740249831305,0.77840435,2777.1,2776.7,0.0397]
[1740249831883,0.77840435,2777.1,2776.7,3.64108]
[1740249832902,0.84516313,2777.2,2776.7,0.0397]
[1740249833109,4.44596313,2777.2,2776.7,3.64107]
[1740249833304,0.84516313,2777.2,2776.7,3.64107]
[1740249833982,0.84516313,2777.2,2776.8,0.1525979]
[1740249834183,0.84516313,2777.2,2776.7,3.64107]
[1740249834386,4.44592313,2777.2,2776.7,3.64107]
[1740249834688,4.44592313,2777.2,2776.8,0.1525979]
[1740249834876,4.44592313,2777.2,2776.7,3.64107]
[1740249835076,4.44592313,2777.2,2776.8,0.15245921]
[1740249835272,4.44592313,2777.2,2776.7,3.64107]
[1740249835586,4.44592313,2777.2,2776.8,0.15245921]
[1740249836011,0.77839735,2777.1,2776.7,0.0397]
[1740249836310,0.77839735,2777.1,2776.8,0.15245921]
[1740249836805,0.77839735,2777.1,2776.7,3.64108]
[1740249836999,0.77839735,2777.1,2776.9,0.15234696]
[1740249837175,0.77839735,2777.1,2776.8,0.15245921]
[1740249837376,0.77839735,2777.1,2777.0,0.15223472]
[1740249837578,0.77839735,2777.1,2776.9,0.15234696]
[1740249837772,0.77839735,2777.1,2777.0,0.88768744]
[1740249838202,4.37926735,2777.1,2777.0,0.88768744]
[1740249838409,0.77839735,2777.1,2777.0,0.88768744]
[1740249838795,4.38041,2777.7,2777.2,3.60066]
[1740249838989,4.38041,2777.7,2777.1,3.64051]
[1740249839205,3.60024,2777.6,2777.3,0.15183772]
[1740249839408,3.60024,2777.6,2777.2,0.15194994]
[1740249839678,4.922305,2777.6,2777.3,0.15183772]
[1740249839884,4.922305,2777.6,2777.1,3.64051]
[1740249840217,3.60044,2777.5,2777.1,0.0397]
[1740249840380,3.60044,2777.5,2777.2,0.15194994]
[1740249840585,1.322065,2777.6,2777.2,0.15194994]
[1740249840785,3.60061,2777.3,2777.2,0.15194994]
[1740249841012,3.60087,2777.1,2777.0,0.73545272]
[1740249841222,3.60087,2777.1,2776.6,0.0397]
[1740249841598,7.20186,2777.1,2776.6,0.0397]
[1740249841807,3.60087,2777.1,2776.6,3.64122]
[1740249842012,1.13199304,2777.1,2776.6,0.0397]
[1740249842197,3.60139,2776.7,2776.4,7.3977]
[1740249842729,3.60122,2776.9,2776.4,7.3977]
[1740249843020,1.13199304,2777.1,2776.4,7.3977]
[1740249843227,3.60114,2776.9,2776.4,10.99942]
[1740249843717,4.38107,2777.2,2776.7,3.60133]
[1740249843931,3.60077,2777.2,2776.8,0.0397]
[1740249844124,3.6007,2777.3,2776.8,0.0397]
[1740249844325,13.22065,2777.7,2777.1,3.60079]
[1740249844633,3.60024,2777.6,2777.2,0.0397]
[1740249844839,3.60037,2777.5,2777.2,0.0397]
[1740249845135,8.84012,2777.7,2777.2,3.64042]
[1740249845310,8.84012,2777.7,2777.3,0.15188596]
[1740249845513,10.79596004,2777.7,2777.2,3.64042]
[1740249845817,10.79596004,2777.7,2777.4,0.15177375]
[1740249846005,5.55596004,2777.7,2777.3,0.15188596]
[1740249846207,3.60024,2777.6,2777.5,0.15166155]
[1740249846421,3.60024,2777.6,2777.4,0.15177375]
[1740249846726,3.60024,2777.6,2777.5,0.15166155]
[1740249847318,3.60042,2777.5,2777.2,0.0397]
[1740249847625,3.60055,2777.4,2777.2,0.0397]
[1740249847828,3.60036,2777.5,2777.3,0.15188596]
[1740249848131,7.20082,2777.5,2777.2,0.0397]
[1740249848428,3.60023,2777.6,2777.4,0.15177375]
[1740249848633,3.60015,2777.7,2777.3,0.15188596]
[1740249848791,7.20037,2777.7,2777.2,0.0397]
[1740249848997,3.60015,2777.7,2777.4,0.15177375]
[1740249849197,3.60028,2777.6,2777.3,0.15188596]
[1740249849408,3.60028,2777.6,2777.5,0.15166155]
[1740249849612,3.60028,2777.6,2777.4,0.15177375]
[1740249849921,3.60028,2777.6,2777.5,0.15166155]
[1740249850328,3.60028,2777.6,2777.2,0.0397]
[1740249850523,8.83978,2778.0,2777.5,0.19136155]
[1740249850705,3.59984,2777.9,2777.5,0.0397]
[1740249851101,3.59984,2777.9,2777.6,0.15154936]
[1740249851421,3.59997,2777.8,2777.6,0.15154936]
[1740249851834,3.59994,2777.9,2777.6,0.15154936]
[1740249854627,3.6,2777.8,2777.6,0.15154936]
[1740249855136,8.83979,2778.0,2777.6,0.15154936]
[1740249855833,3.5999,2777.9,2777.6,0.15154936]
[1740249857035,3.59958,2778.1,2777.6,0.15154936]
[1740249857236,3.59972,2778.0,2777.6,0.15154936]
[1740249857752,5.19717304,2778.1,2777.6,0.15154936]
[1740249858105,3.59972,2778.0,2777.6,0.15154936]
[1740249858735,3.59951,2778.2,2777.7,3.63978]
[1740249858940,3.59951,2778.2,2777.7,4.37894094]
[1740249859125,3.59951,2778.2,2777.8,0.15101757]
[1740249859519,3.59951,2778.2,2777.7,3.63978]
[1740249859722,3.59933,2778.3,2777.9,0.1509054]
[1740249859908,9.63729,2778.6,2778.1,3.59955]
[1740249860111,14.83387404,2778.6,2778.2,0.15015901]
[1740249860320,11.23482404,2778.6,2778.2,0.15015901]
[1740249860742,3.59908,2778.5,2778.2,0.15015901]
[1740249861220,7.19801,2778.6,2778.0,3.63941]
[1740249861421,3.59899,2778.6,2778.3,0.15004688]
[1740249861633,4.038719,2778.6,2778.0,3.63941]
[1740249861832,3.59899,2778.6,2778.1,3.59957]
[1740249862142,3.59899,2778.6,2778.1,3.74976115]
[1740249862322,5.24,2778.9,2778.2,0.0397]
[1740249862519,3.33805037,2779.3,2778.5,3.59894]
[1740249862520,5.24,2779.2,2778.5,3.59894]
[1740249862838,7.19673,2779.1,2778.6,0.0397]
[1740249863016,4.39641,2779.3,2778.6,3.78798755]
[1740249863223,3.59822,2779.2,2778.6,3.78798755]
[1740249863422,3.59815,2779.2,2778.7,3.59879]
[1740249863719,3.59815,2779.2,2778.8,0.14916092]
[1740249864262,3.59815,2779.2,2778.7,0.0397]
[1740249864425,3.59811,2779.3,2778.9,0.14904884]
[1740249864619,3.59811,2779.3,2778.8,0.14916092]
[1740249864857,3.59811,2779.3,2779.1,0.0397]
[1740249865020,8.83765,2779.6,2779.1,3.63792]
[1740249865224,3.59787,2779.5,2779.2,0.14773059]
[1740249865423,3.59798,2779.4,2779.2,0.14773059]
[1740249866246,3.59791,2779.4,2779.2,0.14773059]
[1740249866631,3.59791,2779.4,2779.1,0.0397]
[1740249866839,3.59787,2779.5,2779.3,0.1472392]
[1740249867162,3.59894,2778.6,2778.4,0.0397]
[1740249867359,6.93607037,2779.3,2778.4,0.0397]
[1740249867525,3.59874,2778.8,2778.4,0.0397]
[1740249867721,7.19695,2779.0,2778.4,3.63882]
[1740249867921,3.59846,2779.0,2778.4,3.63882]
[1740249868151,3.59824,2779.2,2778.5,0.0397]
[1740249868327,3.59844,2779.0,2778.5,3.63869]
[1740249868854,8.83796,2779.4,2778.8,0.0397]
[1740249869055,3.59796,2779.4,2778.9,3.59853]
[1740249869249,3.59826,2779.2,2779.0,0.0397]
[1740249869428,3.59828,2779.1,2779.0,0.0397]
[1740249871064,3.59849,2779.0,2778.6,0.0397]
[1740249872427,3.59802,2779.3,2778.6,0.0397]
[1740249872632,3.59861,2778.9,2778.6,0.0397]
[1740249872960,7.19723,2778.9,2778.6,0.0397]
[1740249873134,3.59842,2779.0,2778.6,0.0397]
[1740249875371,3.59842,2779.0,2778.7,0.14241419]
[1740249876635,3.59858,2778.9,2778.7,0.14241419]
[1740249879035,3.59867,2778.8,2778.7,0.14241419]
[1740249892668,3.59849,2779.0,2778.7,0.14241419]
[1740249893682,3.59861,2778.9,2778.7,0.14241419]
[1740249902170,3.59867,2778.8,2778.7,0.14241419]
[1740249902566,3.59856,2778.9,2778.7,0.14241419]
[1740249902803,3.59867,2778.8,2778.7,0.14241419]
[1740249904079,3.59855,2778.9,2778.7,0.14241419]
[1740249904700,5.97360668,2778.8,2778.7,0.14241419]
[1740249904997,8.97360668,2778.8,2778.7,6.52e-06]
[1740249905202,8.21840668,2778.8,2778.0,7.353]
[1740249905403,3.59958,2778.1,2778.0,7.353]
[1740249905798,4.35418,2778.6,2778.0,7.353]
[1740249905967,3.59898,2778.6,2778.1,1.134974]
[1740249906295,1.61973668,2778.7,2778.1,4.734464]
[1740249906463,1.61973668,2778.7,2778.3,3.59929]
[1740249906665,3.59883,2778.7,2778.1,8.333914]
[1740249907003,3.59883,2778.7,2778.2,3.59941]
[1740249908308,4.3539,2778.8,2778.3,3.59931]
[1740249908596,3.59855,2778.9,2778.4,3.59919]
[1740249909501,7.19717,2778.9,2778.4,3.59919]
[1740249909701,3.59868,2778.8,2778.4,0.0397]
[1740249909868,3.59868,2778.8,2778.4,4.545]
[1740249910270,3.59897,2778.6,2778.4,4.5053]
[1740249913104,3.59906,2778.5,2778.4,4.5053]
[1740249913308,5.145563,2778.5,2778.4,4.5053]
[1740249914704,8.48567207,2778.5,2778.4,4.5053]
[1740249916105,0.8267,2778.5,2778.4,4.5053]
[1740249916274,3.59897,2778.6,2778.4,4.5053]
[1740249916620,5.24,2778.7,2778.4,4.62874585]
[1740249916772,8.83882,2778.7,2778.4,4.62874585]
[1740249917177,5.24,2778.7,2778.4,4.62874585]
[1740249918179,5.24,2778.7,2778.4,8.22793585]
[1740249918379,5.24,2778.7,2778.5,0.0397]
[1740249918582,5.24,2778.7,2778.6,0.12361058]
[1740249920416,6.0667,2778.7,2778.6,0.12361058]
[1740249920619,9.6655,2778.7,2778.6,0.12361058]
[1740249920803,3.59906,2778.5,2778.4,4.5053]
[1740249921002,9.6655,2778.7,2778.4,4.5053]
[1740249921206,6.0667,2778.7,2778.4,4.62446549]
[1740249921382,9.6656,2778.7,2778.4,4.5053]
[1740249921583,4.4256,2778.7,2778.5,0.11910708]
[1740249922515,3.59862,2778.9,2778.5,0.11910708]
[1740249923093,3.8267,2779.2,2778.6,3.59884]
[1740249923290,3.8267,2779.2,2778.7,3.5988]
[1740249923291,0.8267,2779.2,2778.7,3.5988]
[1740249923507,3.59814,2779.3,2778.8,0.0397]
[1740249923705,0.8267,2779.4,2778.8,0.0397]
[1740249923903,0.8267,2779.4,2778.9,0.11865272]
[1740249924105,3.59784,2779.5,2779.0,3.59838]
[1740249924621,3.59785,2779.5,2779.1,0.11842857]
[1740249924925,3.59785,2779.5,2778.8,3.63825]
[1740249925213,3.59797,2779.4,2779.2,0.11807185]
[1740249925413,3.59797,2779.4,2778.9,0.363825]
[1740249925621,3.59797,2779.4,2779.3,0.1179598]
[1740249925921,3.59797,2779.4,2778.9,3.962355]
[1740249926091,3.59797,2779.4,2779.3,0.1179598]
[1740249926292,3.59797,2779.4,2778.9,3.962355]
[1740249926510,3.59797,2779.4,2779.3,0.1179598]
[1740249926899,3.59797,2779.4,2778.9,3.962355]
[1740249927102,3.59797,2779.4,2779.3,0.1179598]
[1740249927401,3.59866,2778.9,2778.7,5.39]
[1740249927610,7.1973,2778.9,2778.4,4.808]
[1740249928321,0.7809,2779.0,2778.4,4.545]
[1740249928624,3.59906,2778.5,2778.4,4.5053]
[1740249928922,3.59903,2778.6,2778.4,4.5053]
[1740249929290,0.7809,2779.0,2778.4,4.5053]
[1740249929490,3.59869,2778.8,2778.4,5.49483]
[1740249929789,4.37939,2779.0,2778.4,9.09401]
[1740249929989,3.59871,2778.8,2778.4,4.5053]
[1740249930416,7.97793,2779.0,2778.4,8.10446]
[1740249930719,3.59875,2778.8,2778.5,0.0397]
[1740249931113,4.37936,2779.0,2778.5,0.0397]
[1740249931424,7.97786,2779.0,2778.5,0.0397]
[1740249931726,3.59846,2779.0,2778.5,3.63873]
[1740249932027,3.59846,2779.0,2778.5,4.453133]
[1740249932203,3.59846,2779.0,2778.4,4.5053]
[1740249932397,3.59906,2778.5,2778.4,4.5053]
[1740249932999,4.38666,2778.5,2778.4,4.5053]
[1740249935526,4.38666,2778.5,2778.4,4.62426258]
[1740249935727,4.38666,2778.5,2778.4,4.5053]
[1740249936028,5.18522,2778.5,2778.4,4.62426258]
[1740249939542,3.59906,2778.5,2778.4,4.62426258]
[1740249943248,3.59906,2778.5,2778.4,4.5053]
[1740249945056,3.59906,2778.5,2778.4,4.62462064]
[1740249946350,4.41556,2778.5,2778.4,4.62462064]
[1740249947055,4.41556,2778.5,2778.4,4.5053]
[1740249948249,4.41556,2778.5,2778.4,4.62462064]
[1740249949422,4.41556,2778.5,2778.4,4.5053]
[1740249949959,4.41556,2778.5,2778.4,4.62462064]
[1740249952657,4.41556,2778.5,2778.4,4.5053]
[1740249953863,8.55711907,2778.5,2778.4,4.5053]
[1740249956737,11.55711907,2778.5,2778.4,4.5053]
[1740249960246,16.79711907,2778.5,2778.4,4.5053]
[1740249962970,3.60023,2777.6,2777.5,0.0397]
[1740249963187,3.6004,2777.5,2777.1,0.0397]
[1740249964042,3.60023,2777.6,2777.1,0.0397]
[1740249964355,7.20055,2777.6,2777.1,0.0397]
[1740249964569,3.60023,2777.6,2777.2,0.11270181]
[1740249964867,7.20058,2777.6,2777.2,0.11270181]
[1740249965069,3.60059,2777.4,2777.2,0.11270181]
[1740249965471,3.60058,2777.4,2777.3,0.12090666]
[1740249965857,3.60058,2777.4,2777.1,0.0397]
[1740249966059,7.71614907,2778.1,2777.4,0.0397]
[1740249966270,3.60004,2777.8,2777.4,0.0397]
[1740249966470,3.60004,2777.8,2777.5,0.12130914]
[1740249967385,3.60007,2777.8,2777.5,0.12130914]
[1740249968179,3.60023,2777.6,2777.5,0.12130914]
[1740249968378,4.37663,2777.6,2777.5,0.12130914]
[1740249968678,3.60087,2777.1,2777.0,7.355]
[1740249970054,8.58010907,2777.5,2777.0,7.355]
[1740249970055,6.0164,2777.5,2777.0,7.355]
[1740249970387,5.24,2777.5,2777.1,0.0397]
[1740249970581,5.24,2777.5,2777.2,0.73947]
[1740249970762,5.24,2777.5,2777.3,0.0397]
[1740249971988,3.59997,2777.8,2777.3,0.0397]
[1740249974091,0.7808,2777.7,2777.0,10.95599]
[1740249974292,3.60073,2777.3,2777.0,7.355]
[1740249974863,7.20146,2777.3,2777.0,7.355]
[1740249975056,3.60087,2777.1,2777.0,7.355]
[1740249975865,3.60149,2776.7,2776.0,3.64196]
[1740249976060,3.60114,2776.9,2776.3,3.60182]
[1740249976376,3.60114,2776.9,2776.4,0.0397]
[1740249977775,3.60165,2776.5,2776.4,0.0397]
[1740249978084,8.841,2777.0,2776.2,3.60192]
[1740249978284,3.60125,2776.9,2776.3,0.364162]
[1740249978693,3.60133,2776.8,2776.3,0.364162]
[1740249980095,7.20267,2776.8,2776.3,0.364162]
[1740249980318,3.60133,2776.8,2776.3,0.364162]
[1740249980526,5.24,2777.0,2776.4,0.12363097]
[1740249980527,3.60167,2776.5,2776.4,0.12363097]
[1740249980943,3.60167,2776.5,2776.1,0.0397]
[1740249981098,3.60167,2776.5,2776.4,0.12375647]
[1740249981298,3.60167,2776.5,2776.1,0.0397]
[1740249981521,3.60149,2776.7,2776.1,0.403904]
[1740249981694,3.60149,2776.7,2776.2,0.12398106]
[1740249982597,3.60152,2776.6,2776.2,0.12398106]
[1740249983328,3.60166,2776.5,2776.2,0.12398106]
[1740249983512,3.60127,2776.8,2776.2,3.72596106]
[1740249983843,3.60154,2776.6,2776.2,0.12398106]
[1740249984134,3.6015,2776.7,2776.2,0.12398106]
[1740249984733,3.60159,2776.6,2776.2,0.12398106]
[1740249984908,3.60169,2776.5,2776.2,0.12398106]
[1740249985111,3.60169,2776.5,2776.4,0.7091216]
[1740249985535,3.60169,2776.5,2776.4,0.83286014]
[1740249985698,7.20322,2776.6,2776.4,0.83286014]
[1740249986028,3.60159,2776.6,2776.4,0.83286014]
[1740249986207,3.60165,2776.5,2776.4,0.83286014]
[1740249988347,3.60154,2776.6,2776.4,0.83286014]
[1740249989045,4.36065,2776.5,2776.4,0.83286014]
[1740249989256,4.36065,2776.5,2776.4,0.7091216]
[1740249989416,3.60165,2776.5,2776.1,0.0397]
[1740249989617,3.60165,2776.5,2776.2,0.12420217]
[1740249990343,3.60154,2776.6,2776.2,0.12420217]
[1740249990724,3.60147,2776.7,2776.2,0.12420217]
[1740249991018,3.60158,2776.6,2776.2,0.12420217]
[1740249991335,3.60147,2776.7,2776.2,0.12420217]
[1740249991541,7.20294,2776.7,2776.2,0.12420217]
[1740249991741,3.60147,2776.7,2776.2,0.12420217]
[1740249993042,3.60155,2776.6,2776.2,0.12420217]
[1740249993230,3.60147,2776.7,2776.2,0.12420217]
[1740249994066,3.60147,2776.7,2776.2,3.72624217]
[1740249994357,4.36018,2776.9,2776.2,3.72624217]
[1740249994358,3.60129,2776.8,2776.3,0.0397]
[1740249994562,3.60146,2776.7,2776.3,0.0397]
[1740249994763,3.60146,2776.7,2776.4,0.12398356]
[1740249995459,3.60136,2776.8,2776.4,0.12398356]
[1740249995688,3.60138,2776.8,2776.4,0.12398356]
[1740249995843,3.60139,2776.8,2776.4,0.12398356]
[1740249996578,5.24,2777.0,2776.5,0.0397]
[1740249996761,3.6014,2776.7,2776.5,0.0397]
[1740249996967,3.6014,2776.7,2776.6,0.12375901]
[1740249997344,3.60122,2776.9,2776.6,0.12375901]
[1740249997555,3.60127,2776.8,2776.6,0.12375901]
[1740249998183,3.60102,2777.0,2776.6,0.12375901]
[1740249998566,0.7749,2777.1,2776.6,0.12375901]